[Event "FRA-ch Youth U20W 2019"]
[Site "Hyeres"]
[Date "2019.04.15"]
[Round "3.1"]
[White "Aouachria, Marwa"]
[Black "Pigeat, Typhaine"]
[Result "1-0"]
[ECO "B28"]
[WhiteElo "1738"]
[BlackElo "1742"]
[Annotator "NA"]
[PlyCount "95"]
[EventDate "2019.04.14"]
[EventType "swiss"]
[EventCountry "FRA"]
[SourceTitle "playchess.com"]
[Source "ChessBase"]
[SourceQuality "1"]
[TimeControl "5400+30"]

1. e4 {[%emt 0:02:37]} c5 {[%emt 0:00:00]} 2. Nf3 {[%emt 0:00:34]} Nc6 {[%emt 0:00:18]} 3. d4 {[%emt 0:00:19]} cxd4 {[%emt 0:00:12]} 4. Nxd4 {[%emt 0:00:05]} a6 {[%emt 0:00:42]} 5. c4 {[%emt 0:00:06]} Qb6 {[%emt 0:03:24]} 6. Nb3 {[%emt 0:02:21]} d6 {[%emt 0:04:06]} 7. Be3 {[%emt 0:00:45]} Qc7 {[%emt 0:01:29]} 8. Nc3 {[%emt 0:00:14]} Be6 {[%emt 0:02:08]} 9. Nd5 {[%emt 0:02:52]} Bxd5 {[%emt 0:06:42]} 10. cxd5 {[%emt 0:00:51]} Ne5 {[%emt 0:04:16]} 11. Rc1 {[%emt 0:07:07]} Qd7 {[%emt 0:05:23]} 12. Qc2 {[%emt 0:04:47]} Nf6 {[%emt 0:07:08]} 13. Be2 {[%emt 0:12:56]} h5 {[%emt 0:12:03]} 14. O-O {[%emt 0:01:33]} Qd8 {[%emt 0:14:17]} 15. f3 {[%emt 0:06:18]} g6 {[%emt 0:01:14]} 16. Qc7 {[%emt 0:02:20]} b5 {[%emt 0:05:34]} 17. Bb6 {[%emt 0:03:28]} Qxc7 {[%emt 0:05:59]} 18. Rxc7 {[%emt 0:00:02]} Ned7 {[%emt 0:02:29]} 19. Bd4 {[%emt 0:13:06]} Bh6 {[%emt 0:04:10]} 20. f4 {[%emt 0:09:25]} Kd8 {[%emt 0:04:10]} 21. Rc6 {[%emt 0:01:10]} Rg8 {[%emt 0:03:19]} 22. Bd3 {[%emt 0:05:46]} g5 {[%emt 0:03:34]} 23. Na5 {[%emt 0:05:09]} gxf4 {[%emt 0:01:42]} 24. Rfc1 {[%emt 0:01:43]} e5 {[%emt 0:03:10]} 25. dxe6 {[%emt 0:02:05]} fxe6 {[%emt 0:00:26]} 26. Rxd6 {[%emt 0:00:37]} f3 {[%emt 0:03:40]} 27. Rcc6 {[%emt 0:04:18]} Rxg2+ {[%emt 0:01:14]} 28. Kf1 {[%emt 0:02:46]} Ng4 {[%emt 0:00:12]} 29. Nb7+ {[%emt 0:00:28]} Ke8 {[%emt 0:00:30]} 30. Rxe6+ {[%emt 0:00:36]} Kf8 {[%emt 0:00:11]} 31. Rxh6 {[%emt 0:00:54]} Nxh6 {[%emt 0:01:04]} 32. Rxh6 {[%emt 0:00:09]} Ke7 {[%emt 0:00:40]} 33. Nc5 {[%emt 0:03:27]} Nxc5 {[%emt 0:00:31]} 34. Bxc5+ {[%emt 0:00:03]} Kd7 {[%emt 0:00:21]} 35. e5 {[%emt 0:01:22]} Re8 {[%emt 0:00:36]} 36. Bf5+ {[%emt 0:01:38]} Kc7 {[%emt 0:00:25]} 37. Bd6+ {[%emt 0:00:23]} Kb6 {[%emt 0:00:38]} 38. b4 {[%emt 0:00:51]} Reg8 {[%emt 0:00:29]} 39. Bc5+ {[%emt 0:00:29]} Kc7 {[%emt 0:00:21]} 40. Rh7+ {[%emt 0:01:37]} R2g7 {[%emt 0:00:32]} 41. Rxh5 {[%emt 0:00:49]} Re8 {[%emt 0:00:37]} 42. Bd6+ {[%emt 0:00:58]} Kc6 {[%emt 0:00:19]} 43. Be4+ {[%emt 0:00:36]} Kd7 {[%emt 0:00:08]} 44. Bxf3 {[%emt 0:02:20]} Rc8 {[%emt 0:01:05]} 45. Bc5 {[%emt 0:00:00]} Rf7 {[%emt 0:00:30]} 46. Ke2 {[%emt 0:00:00]} Rd8 {[%emt 0:00:28]} 47. Rh6 {[%emt 0:00:00]} Re8 {[%emt 0:00:22]} 48. Bc6+ {[%emt 0:00:00]} 1-0

[Event "FRA-ch Youth U20W 2019"]
[Site "Hyeres"]
[Date "2019.04.15"]
[Round "3.2"]
[White "Bellahcene, Anissa"]
[Black "Milroy, Melena"]
[Result "0-1"]
[ECO "B01"]
[WhiteElo "1816"]
[BlackElo "1720"]
[Annotator "NA"]
[PlyCount "95"]
[EventDate "2019.04.14"]
[EventType "swiss"]
[EventCountry "FRA"]
[SourceTitle "playchess.com"]
[Source "ChessBase"]
[SourceQuality "1"]
[TimeControl "5400+30"]

1. e4 {[%emt 0:06:28]} d5 {[%emt 0:00:58]} 2. exd5 {[%emt 0:00:14]} Nf6 {[%emt 0:00:07]} 3. Bb5+ {[%emt 0:00:11]} Nbd7 {[%emt 0:00:11]} 4. Nf3 {[%emt 0:01:21]} a6 {[%emt 0:00:09]} 5. Be2 {[%emt 0:01:19]} Nxd5 {[%emt 0:01:17]} 6. d4 {[%emt 0:00:22]} e6 {[%emt 0:03:08]} 7. O-O {[%emt 0:00:42]} c5 {[%emt 0:00:59]} 8. c4 {[%emt 0:01:02]} N5f6 {[%emt 0:00:45]} 9. Nc3 {[%emt 0:07:16]} cxd4 {[%emt 0:01:40]} 10. Nxd4 {[%emt 0:00:09]} Qc7 {[%emt 0:01:11]} 11. Re1 {[%emt 0:06:32]} Bd6 {[%emt 0:00:52]} 12. h3 {[%emt 0:00:10]} O-O {[%emt 0:00:12]} 13. b3 {[%emt 0:03:19]} Bb4 {[%emt 0:02:17]} 14. Bd2 {[%emt 0:00:09]} Qe5 {[%emt 0:03:03]} 15. Nf3 {[%emt 0:00:14]} Qd6 {[%emt 0:15:29]} 16. Qc2 {[%emt 0:01:35]} Ba5 {[%emt 0:13:09]} 17. Rad1 {[%emt 0:01:30]} Qc7 {[%emt 0:11:12]} 18. Ne4 {[%emt 0:03:14]} Bxd2 {[%emt 0:00:29]} 19. Rxd2 {[%emt 0:00:06]} Nxe4 {[%emt 0:00:13]} 20. Qxe4 {[%emt 0:00:08]} Nf6 {[%emt 0:00:45]} 21. Qe3 {[%emt 0:07:13]} b6 {[%emt 0:03:16]} 22. Ne5 {[%emt 0:00:25]} Bb7 {[%emt 0:01:22]} 23. Bf3 {[%emt 0:00:28]} Bxf3 {[%emt 0:04:43]} 24. Nxf3 {[%emt 0:01:52]} Rfd8 {[%emt 0:03:49]} 25. Red1 {[%emt 0:00:10]} a5 {[%emt 0:04:43]} 26. Nd4 {[%emt 0:01:59]} Qc5 {[%emt 0:07:10]} 27. Qf3 {[%emt 0:01:15]} Qf8 {[%emt 0:10:17]} 28. Nb5 {[%emt 0:05:39]} Rxd2 {[%emt 0:01:13]} 29. Rxd2 {[%emt 0:00:05]} Rd8 {[%emt 0:00:17]} 30. Qe3 {[%emt 0:02:09]} Rxd2 {[%emt 0:00:06]} 31. Qxd2 {[%emt 0:00:05]} h6 {[%emt 0:03:31]} 32. Qd4 {[%emt 0:04:13]} Qb8 {[%emt 0:00:20]} 33. a3 {[%emt 0:03:14]} e5 {[%emt 0:02:00]} 34. Qd3 {[%emt 0:00:12]} Qb7 {[%emt 0:01:02]} 35. Qd8+ {[%emt 0:01:00]} Kh7 {[%emt 0:00:05]} 36. Nd6 {[%emt 0:00:07]} Qa7 {[%emt 0:03:25]} 37. Nc8 {[%emt 0:03:04]} Qd7 {[%emt 0:00:13]} 38. Qxd7 {[%emt 0:01:16]} Nxd7 {[%emt 0:00:05]} 39. Kf1 {[%emt 0:00:08]} Kg6 {[%emt 0:00:57]} 40. Ne7+ {[%emt 0:01:04]} Kf6 {[%emt 0:00:38]} 41. Nd5+ {[%emt 0:00:04]} Ke6 {[%emt 0:00:18]} 42. Ke2 {[%emt 0:00:17]} e4 {[%emt 0:01:57]} 43. Ke3 {[%emt 0:04:14]} Ke5 {[%emt 0:00:05]} 44. b4 {[%emt 0:06:36]} f5 {[%emt 0:01:05]} 45. g3 {[%emt 0:00:08]} g5 {[%emt 0:00:04]} 46. b5 {[%emt 0:06:16]} h5 {[%emt 0:00:57]} 47. h4 {[%emt 0:03:02]} gxh4 {[%emt 0:00:17]} 48. gxh4 {[%emt 0:02:45]} 0-1

[Event "FRA-ch Youth U20W 2019"]
[Site "Hyeres"]
[Date "2019.04.15"]
[Round "3.3"]
[White "Aubert, Laurane"]
[Black "Azan, Sarah"]
[Result "1-0"]
[ECO "B18"]
[WhiteElo "1953"]
[BlackElo "1349"]
[Annotator "NA"]
[PlyCount "67"]
[EventDate "2019.04.14"]
[EventType "swiss"]
[EventCountry "FRA"]
[SourceTitle "playchess.com"]
[Source "ChessBase"]
[SourceQuality "1"]
[TimeControl "5400+30"]

1. e4 {[%emt 0:00:00]} c6 {[%emt 0:00:00]} 2. d4 {[%emt 0:00:00]} d5 {[%emt 0:00:00]} 3. Nc3 {[%emt 0:00:00]} dxe4 {[%emt 0:00:00]} 4. Nxe4 {[%emt 0:00:00]} Bf5 {[%emt 0:00:00]} 5. Ng3 {[%emt 0:00:00]} Bg6 {[%emt 0:00:19]} 6. Nh3 {[%emt 0:00:00]} e6 {[%emt 0:01:09]} 7. Nf4 {[%emt 0:00:00]} Bd6 {[%emt 0:00:57]} 8. h4 {[%emt 0:00:20]} Bxf4 {[%emt 0:04:11]} 9. Bxf4 {[%emt 0:00:04]} h6 {[%emt 0:00:25]} 10. h5 {[%emt 0:02:11]} Bh7 {[%emt 0:00:13]} 11. c3 {[%emt 0:03:53]} Nd7 {[%emt 0:05:49]} 12. Bc4 {[%emt 0:02:50]} Ngf6 {[%emt 0:04:54]} 13. O-O {[%emt 0:02:06]} O-O {[%emt 0:01:58]} 14. Re1 {[%emt 0:00:30]} Re8 {[%emt 0:03:32]} 15. Qd2 {[%emt 0:02:16]} Nb6 {[%emt 0:07:41]} 16. Bb3 {[%emt 0:00:40]} Nbd5 {[%emt 0:10:20]} 17. Be5 {[%emt 0:02:48]} b5 {[%emt 0:03:22]} 18. Qe2 $11 {[%emt 0:05:37]} Rc8 {[%emt 0:04:50]} 19. Qf3 {[%emt 0:02:54]} c5 {[%emt 0:08:07]} 20. dxc5 {[%emt 0:02:10]} Rxc5 {[%emt 0:02:25]} 21. Bd4 {[%emt 0:00:11]} Rc7 {[%emt 0:00:28]} 22. Rad1 {[%emt 0:00:19]} Rd7 {[%emt 0:04:12]} 23. a4 {[%emt 0:14:22]} a6 {[%emt 0:06:47]} 24. axb5 {[%emt 0:05:16]} axb5 {[%emt 0:00:18]} 25. Be5 {[%emt 0:05:04]} Qe7 {[%emt 0:13:42]} 26. Qe2 {[%emt 0:15:34]} Qc5 {[%emt 0:03:33]} 27. Bd4 {[%emt 0:03:39]} Qc6 {[%emt 0:01:09]} 28. Qf3 {[%emt 0:05:00]} Qc7 {[%emt 0:03:51]} 29. Ra1 {[%emt 0:06:41]} Qd8 {[%emt 0:02:00]} 30. Qe2 {[%emt 0:06:05]} Rb7 {[%emt 0:01:05]} 31. Rad1 {[%emt 0:00:24]} Qd7 {[%emt 0:03:04]} 32. Bxf6 {[%emt 0:01:10]} gxf6 {[%emt 0:00:36]} 33. Bxd5 {[%emt 0:00:31]} exd5 {[%emt 0:02:43]} 34. Qxe8+ {[%emt 0:00:17]} 1-0

[Event "FRA-ch Youth U20W 2019"]
[Site "Hyeres"]
[Date "2019.04.15"]
[Round "3.4"]
[White "Guigue, Marie-Celine"]
[Black "Fretel, Liza"]
[Result "0-1"]
[ECO "A57"]
[WhiteElo "1338"]
[BlackElo "1892"]
[Annotator "NA RC"]
[PlyCount "54"]
[EventDate "2019.04.14"]
[EventType "swiss"]
[EventCountry "FRA"]
[SourceTitle "playchess.com"]
[Source "ChessBase"]
[SourceQuality "1"]
[TimeControl "5400+30"]

1. d4 {[%emt 0:00:00]} Nf6 {[%emt 0:00:00]} 2. c4 {[%emt 0:00:00]} c5 {[%emt 0:00:00]} 3. d5 {[%emt 0:00:00]} b5 {[%emt 0:00:00]} 4. cxb5 {[%emt 0:00:16]} a6 {[%emt 0:00:00]} 5. b6 {[%emt 0:00:41]} e6 {[%emt 0:00:03]} 6. Nc3 {[%emt 0:00:50]} exd5 {[%emt 0:00:08]} 7. Nxd5 {[%emt 0:00:43]} Nxd5 {[%emt 0:00:08]} 8. Qxd5 {[%emt 0:00:15]} Nc6 {[%emt 0:00:03]} 9. Nf3 {[%emt 0:02:58]} Rb8 {[%emt 0:00:12]} 10. e4 {[%emt 0:00:11]} Be7 {[%emt 0:01:06]} 11. Bc4 {[%emt 0:01:00]} O-O {[%emt 0:00:09]} 12. O-O {[%emt 0:03:45]} Rxb6 {[%emt 0:00:24]} 13. Ng5 {[%emt 0:00:48] A57: Benko/Volga Gambit} (13. Bd2 d6 14. b3 Be6 15. Qd3 Nb4 16. Qe2 Bxc4 17. Qxc4 d5 18. exd5 Qxd5 19. Qxd5 Nxd5 20. Ne5 Re6 21. Rae1 {1-0 (52) Michalik,P (2546)-Hertneck,G (2496) Germany 2018}) 13... Qe8 {[%emt 0:05:41]} 14. Qf5 {[%emt 0:01:35]} g6 {[%emt 0:00:14]} 15. Qh3 {[%emt 0:02:40]} h5 $146 {[%emt 0:02:42]} ({Predecessor:} 15... Bxg5 16. Bxg5 Qxe4 17. Qh6 Qf5 18. Rae1 Ne5 19. Re3 Ng4 20. Qh4 Nxe3 21. fxe3 {1-0 (35) Myc,M (2312)-Ziolkowski,D (2183) Chojnice 2008}) 16. Qe3 {[%emt 0:13:02]} Nd4 {[%emt 0:05:47]} 17. Qd2 {[%emt 0:09:11]} Bxg5 {[%emt 0:02:22]} 18. Qxg5 {[%emt 0:00:58]} Qxe4 {[%emt 0:00:17]} 19. Qxc5 {[%emt 0:09:05]} Rc6 {[%emt 0:00:31]} 20. Qd5 {[%emt 0:00:55]} Ne2+ $19 {[%emt 0:00:26]} 21. Kh1 {[%emt 0:01:35]} Qxc4 {[%emt 0:00:13]} 22. Qxc4 {[%emt 0:11:08]} Rxc4 {[%emt 0:00:05]} 23. Be3 {[%emt 0:00:48]} Bb7 {[%emt 0:02:55]} 24. Rfd1 {[%emt 0:03:07]} Bc6 {[%emt 0:04:45]} 25. Rd6 {[%emt 0:04:04]} Nf4 {[%emt 0:02:28]} 26. Bxf4 {[%emt 0:00:56]} Rxf4 {[%emt 0:00:06]} 27. Re1 {[%emt 0:00:35]} Rxf2 {[%emt 0:00:11]} 0-1

[Event "FRA-ch Youth U20W 2019"]
[Site "Hyeres"]
[Date "2019.04.15"]
[Round "3.5"]
[White "Sonet, Sandy"]
[Black "Ranguin, Anna"]
[Result "1-0"]
[ECO "D11"]
[WhiteElo "1616"]
[BlackElo "1539"]
[Annotator "NA"]
[PlyCount "101"]
[EventDate "2019.04.14"]
[EventType "swiss"]
[EventCountry "FRA"]
[SourceTitle "playchess.com"]
[Source "ChessBase"]
[SourceQuality "1"]
[TimeControl "5400+30"]

1. d4 {[%emt 0:00:00]} d5 {[%emt 0:00:00]} 2. c4 {[%emt 0:00:00]} c6 {[%emt 0:00:08]} 3. Nf3 {[%emt 0:00:00]} Nf6 {[%emt 0:00:16]} 4. Qc2 {[%emt 0:00:00]} g6 {[%emt 0:01:06]} 5. e3 {[%emt 0:04:23]} Bf5 {[%emt 0:02:36]} 6. Qb3 {[%emt 0:05:26]} Qc7 {[%emt 0:01:44]} 7. cxd5 {[%emt 0:03:12]} cxd5 {[%emt 0:05:50]} 8. Nc3 {[%emt 0:00:13]} e6 {[%emt 0:01:45]} 9. Bd2 {[%emt 0:09:43]} Nbd7 {[%emt 0:01:58]} 10. Rc1 {[%emt 0:02:04]} Qb6 {[%emt 0:02:29]} 11. Nb5 {[%emt 0:07:38]} Rb8 {[%emt 0:03:04]} 12. Qa4 {[%emt 0:05:36]} Bd6 {[%emt 0:13:14]} 13. Ba5 {[%emt 0:02:30]} Qa6 {[%emt 0:01:27]} 14. Nc7+ {[%emt 0:00:45]} Bxc7 {[%emt 0:01:23]} 15. Bxa6 {[%emt 0:00:10]} Bxa5+ {[%emt 0:00:23]} 16. Qxa5 {[%emt 0:00:31]} bxa6 {[%emt 0:00:24]} 17. Qxa6 {[%emt 0:01:42]} O-O {[%emt 0:00:54]} 18. O-O {[%emt 0:01:13]} Rxb2 {[%emt 0:01:23]} 19. Rc8 {[%emt 0:08:28]} Rxc8 {[%emt 0:01:27]} 20. Qxc8+ {[%emt 0:00:05]} Kg7 {[%emt 0:00:05]} 21. Qa6 {[%emt 0:03:25]} Nb6 {[%emt 0:01:55]} 22. Qxa7 {[%emt 0:00:45]} Nc4 {[%emt 0:00:20]} 23. Ng5 {[%emt 0:05:15]} Nd6 {[%emt 0:01:36]} 24. a4 {[%emt 0:09:05]} h6 {[%emt 0:01:13]} 25. Nf3 {[%emt 0:00:51]} Ra2 {[%emt 0:00:31]} 26. a5 {[%emt 0:01:49]} Bd3 {[%emt 0:00:38]} 27. Rc1 {[%emt 0:03:30]} Nfe4 {[%emt 0:01:11]} 28. Ne5 {[%emt 0:02:34]} Bb5 {[%emt 0:04:16]} 29. f3 {[%emt 0:04:53]} Nd2 {[%emt 0:01:33]} 30. Qc5 {[%emt 0:04:14]} Nb3 {[%emt 0:02:48]} 31. Qxd6 {[%emt 0:00:15]} Nxc1 {[%emt 0:00:48]} 32. h4 {[%emt 0:08:28]} Nd3 {[%emt 0:02:50]} 33. Qe7 {[%emt 0:04:18]} Nxe5 {[%emt 0:01:47]} 34. dxe5 {[%emt 0:00:04]} Bc4 {[%emt 0:04:22]} 35. Qf6+ {[%emt 0:01:12]} Kg8 {[%emt 0:00:21]} 36. h5 {[%emt 0:00:50]} gxh5 {[%emt 0:03:43]} 37. Qxh6 {[%emt 0:00:13]} Bd3 {[%emt 0:01:37]} 38. Qxh5 {[%emt 0:00:53]} Rxa5 {[%emt 0:01:51]} 39. Qg5+ {[%emt 0:01:03]} Kh7 {[%emt 0:00:08]} 40. Qh4+ {[%emt 0:01:25]} Kg7 {[%emt 0:00:20]} 41. Qf6+ {[%emt 0:00:14]} Kh7 {[%emt 0:01:42]} 42. Qxf7+ {[%emt 0:00:11]} Kh8 {[%emt 0:01:45]} 43. Qxe6 {[%emt 0:00:43]} Ra1+ {[%emt 0:00:06]} 44. Kf2 {[%emt 0:00:39]} Bc4 {[%emt 0:00:59]} 45. Qf6+ {[%emt 0:00:25]} Kg8 {[%emt 0:00:27]} 46. e6 {[%emt 0:00:14]} Ra6 {[%emt 0:00:32]} 47. Qf7+ {[%emt 0:00:19]} Kh8 {[%emt 0:00:09]} 48. e7 {[%emt 0:00:16]} Bb5 {[%emt 0:02:19]} 49. e8=Q+ {[%emt 0:00:20]} Bxe8 {[%emt 0:00:08]} 50. Qxe8+ {[%emt 0:00:04]} Kg7 {[%emt 0:00:21]} 51. Qd7+ {[%emt 0:00:18]} 1-0

[Event "FRA-ch Youth U20W 2019"]
[Site "Hyeres"]
[Date "2019.04.15"]
[Round "3.6"]
[White "Fromherz, Audrey"]
[Black "Budak, Lori"]
[Result "0-1"]
[ECO "B38"]
[WhiteElo "1531"]
[BlackElo "1679"]
[Annotator "NA"]
[PlyCount "65"]
[EventDate "2019.04.14"]
[EventType "swiss"]
[EventCountry "FRA"]
[SourceTitle "playchess.com"]
[Source "ChessBase"]
[SourceQuality "1"]
[TimeControl "5400+30"]

1. e4 {[%emt 0:00:00]} c5 {[%emt 0:00:00]} 2. Nf3 {[%emt 0:00:14]} g6 {[%emt 0:00:00]} 3. d4 {[%emt 0:00:27]} cxd4 {[%emt 0:00:00]} 4. Nxd4 {[%emt 0:00:05]} Bg7 {[%emt 0:00:02]} 5. c4 {[%emt 0:00:30]} Nc6 {[%emt 0:00:24]} 6. Be3 {[%emt 0:00:48]} Nf6 {[%emt 0:00:20]} 7. Nc3 {[%emt 0:01:18]} O-O {[%emt 0:04:42]} 8. Be2 {[%emt 0:08:44]} d6 {[%emt 0:00:47]} 9. f3 {[%emt 0:01:02]} Be6 {[%emt 0:07:03]} 10. Qd2 {[%emt 0:05:11]} a6 {[%emt 0:03:12]} 11. h4 {[%emt 0:14:13]} Nh5 {[%emt 0:06:29]} 12. g4 {[%emt 0:22:53]} Ng3 {[%emt 0:00:27]} 13. Rh3 {[%emt 0:00:44]} Nxe2 {[%emt 0:00:36]} 14. Ncxe2 {[%emt 0:02:40]} Bxc4 {[%emt 0:02:36]} 15. h5 {[%emt 0:04:25]} Bxe2 {[%emt 0:07:36]} 16. Nxe2 {[%emt 0:01:16]} Qa5 {[%emt 0:04:11]} 17. hxg6 {[%emt 0:09:19]} Qxd2+ {[%emt 0:01:48]} 18. Kxd2 {[%emt 0:00:07]} hxg6 {[%emt 0:00:36]} 19. f4 {[%emt 0:05:26]} Na5 {[%emt 0:02:00]} 20. Bd4 {[%emt 0:04:13]} Nc4+ {[%emt 0:05:03]} 21. Kc3 {[%emt 0:04:47]} Rac8 {[%emt 0:00:39]} 22. Bxg7 {[%emt 0:09:11]} Kxg7 {[%emt 0:00:04]} 23. Rah1 {[%emt 0:00:06]} Ne3+ {[%emt 0:02:39]} 24. Kd4 {[%emt 0:01:14]} Nxg4 {[%emt 0:00:33]} 25. Rb3 {[%emt 0:01:33]} b5 {[%emt 0:00:39]} 26. Nc3 {[%emt 0:00:42]} Rc4+ {[%emt 0:00:37]} 27. Kd3 {[%emt 0:01:21]} Nf2+ {[%emt 0:00:25]} 28. Ke2 {[%emt 0:00:37]} Nxh1 {[%emt 0:00:13]} 29. Nd5 {[%emt 0:00:12]} Rh8 {[%emt 0:01:08]} 30. Re3 {[%emt 0:01:01]} Rh2+ {[%emt 0:00:47]} 31. Kd1 {[%emt 0:00:31]} Nf2+ {[%emt 0:00:44]} 32. Kd2 {[%emt 0:00:28]} Nxe4+ {[%emt 0:00:34]} 33. Ke1 {[%emt 0:01:12]} 0-1

[Event "FRA-ch Youth U20W 2019"]
[Site "Hyeres"]
[Date "2019.04.16"]
[Round "4.1"]
[White "Milroy, Melena"]
[Black "Aouachria, Marwa"]
[Result "0-1"]
[ECO "B23"]
[WhiteElo "1720"]
[BlackElo "1738"]
[Annotator "NA"]
[PlyCount "48"]
[EventDate "2019.04.14"]
[EventType "swiss"]
[EventCountry "FRA"]
[SourceTitle "playchess.com"]
[Source "ChessBase"]
[SourceQuality "1"]
[TimeControl "5400+30"]

1. e4 {[%emt 0:00:00]} c5 {[%emt 0:00:00]} 2. Nc3 {[%emt 0:00:00]} Nc6 {[%emt 0:00:51]} 3. f4 {[%emt 0:00:00]} e6 {[%emt 0:00:05]} 4. Nf3 {[%emt 0:00:00]} Nge7 {[%emt 0:01:02]} 5. d4 {[%emt 0:00:00]} cxd4 {[%emt 0:04:37]} 6. Nxd4 {[%emt 0:00:05]} Nxd4 {[%emt 0:02:56]} 7. Qxd4 {[%emt 0:00:05]} Nc6 {[%emt 0:00:01]} 8. Qf2 {[%emt 0:00:07]} d5 {[%emt 0:01:48]} 9. exd5 {[%emt 0:00:05]} exd5 {[%emt 0:00:03]} 10. Bd3 {[%emt 0:00:21]} Bb4 {[%emt 0:04:21]} 11. Bd2 {[%emt 0:00:06]} Qe7+ {[%emt 0:02:10]} 12. Kd1 {[%emt 0:05:44]} Bg4+ {[%emt 0:02:09]} 13. Kc1 {[%emt 0:00:06]} O-O-O {[%emt 0:03:22]} 14. Qg3 {[%emt 0:11:31]} Qd7 {[%emt 0:08:56]} 15. Nxd5 {[%emt 0:01:49]} Bxd2+ {[%emt 0:00:07]} 16. Kxd2 {[%emt 0:00:05]} Bf5 {[%emt 0:00:54]} 17. c4 {[%emt 0:11:06]} Ne7 {[%emt 0:17:37]} 18. Rhc1 {[%emt 0:32:47]} Kb8 {[%emt 0:21:39]} 19. Rc3 {[%emt 0:17:12]} Nxd5 {[%emt 0:05:50]} 20. cxd5 {[%emt 0:03:04]} Qxd5 {[%emt 0:00:28]} 21. Kc2 {[%emt 0:05:04]} Bxd3+ {[%emt 0:06:09]} 22. Rxd3 {[%emt 0:00:17]} Qf5 {[%emt 0:00:29]} 23. Rad1 {[%emt 0:00:47]} Rd5 {[%emt 0:06:03]} 24. Qxg7 {[%emt 0:06:49]} Rc8+ {[%emt 0:00:39]} 0-1

[Event "FRA-ch Youth U20W 2019"]
[Site "Hyeres"]
[Date "2019.04.16"]
[Round "4.2"]
[White "Pigeat, Typhaine"]
[Black "Aubert, Laurane"]
[Result "0-1"]
[ECO "B40"]
[WhiteElo "1742"]
[BlackElo "1953"]
[Annotator "NA"]
[PlyCount "115"]
[EventDate "2019.04.14"]
[EventType "swiss"]
[EventCountry "FRA"]
[SourceTitle "playchess.com"]
[Source "ChessBase"]
[SourceQuality "1"]
[TimeControl "5400+30"]

1. e4 {[%emt 0:00:00]} c5 {[%emt 0:00:00]} 2. Nf3 {[%emt 0:00:22]} e6 {[%emt 0:00:00]} 3. Nc3 {[%emt 0:03:28]} Nc6 {[%emt 0:00:20]} 4. h3 {[%emt 0:03:23]} a6 {[%emt 0:04:39]} 5. a4 {[%emt 0:01:25]} Qc7 {[%emt 0:03:43]} 6. b3 {[%emt 0:03:40]} Nf6 {[%emt 0:04:26]} 7. Bc4 {[%emt 0:12:52]} Be7 {[%emt 0:07:41]} 8. O-O {[%emt 0:02:20]} O-O {[%emt 0:08:07]} 9. Re1 {[%emt 0:03:01]} d6 {[%emt 0:01:24]} 10. Bb2 {[%emt 0:02:09]} b6 {[%emt 0:04:14]} 11. Bf1 {[%emt 0:09:46]} Bb7 {[%emt 0:06:23]} 12. d3 {[%emt 0:03:10]} d5 {[%emt 0:06:53]} 13. exd5 {[%emt 0:03:08]} exd5 {[%emt 0:00:52]} 14. Qd2 {[%emt 0:04:15]} Rad8 {[%emt 0:06:03]} 15. Rad1 {[%emt 0:05:32]} Bd6 {[%emt 0:02:40]} 16. Ne2 {[%emt 0:07:59]} d4 {[%emt 0:09:30]} 17. Nh4 {[%emt 0:10:51]} Nd5 {[%emt 0:06:43]} 18. Bc1 {[%emt 0:04:10]} Rfe8 {[%emt 0:02:52]} 19. Nf5 {[%emt 0:03:46]} Be5 {[%emt 0:00:43]} 20. f4 {[%emt 0:05:16]} Bf6 {[%emt 0:01:27]} 21. Neg3 {[%emt 0:03:19]} Rf8 {[%emt 0:10:41]} 22. Ne4 {[%emt 0:01:35]} Bc8 {[%emt 0:01:02]} 23. Nxf6+ {[%emt 0:01:04]} Nxf6 {[%emt 0:00:07]} 24. Nh4 {[%emt 0:01:00]} Nd5 {[%emt 0:00:57]} 25. Qf2 {[%emt 0:01:23]} Qd6 {[%emt 0:02:26]} 26. Bd2 {[%emt 0:00:43]} Ncb4 {[%emt 0:01:49]} 27. Rc1 {[%emt 0:00:55]} Na2 {[%emt 0:00:28]} 28. Ra1 {[%emt 0:00:18]} Nac3 {[%emt 0:00:23]} 29. g3 {[%emt 0:00:54]} Bd7 {[%emt 0:05:16]} 30. Bg2 {[%emt 0:00:40]} h6 {[%emt 0:01:25]} 31. Nf3 {[%emt 0:00:20]} Be6 {[%emt 0:01:25]} 32. Rf1 {[%emt 0:01:53]} Rfe8 {[%emt 0:00:34]} 33. Rae1 {[%emt 0:00:21]} b5 {[%emt 0:00:26]} 34. axb5 {[%emt 0:00:34]} axb5 {[%emt 0:01:21]} 35. Nh2 {[%emt 0:00:37]} f6 {[%emt 0:00:00]} 36. f5 {[%emt 0:00:55]} Bf7 {[%emt 0:00:00]} 37. Rxe8+ {[%emt 0:00:33]} Rxe8 {[%emt 0:00:00]} 38. Re1 {[%emt 0:00:23]} Qd7 {[%emt 0:01:23]} 39. Nf3 {[%emt 0:00:50]} Qxf5 {[%emt 0:00:30]} 40. Rxe8+ {[%emt 0:00:32]} Bxe8 {[%emt 0:00:05]} 41. Qe1 {[%emt 0:00:18]} Qd7 {[%emt 0:00:30]} 42. Kh2 {[%emt 0:00:43]} Bf7 {[%emt 0:00:22]} 43. Nh4 {[%emt 0:00:34]} Be6 {[%emt 0:00:46]} 44. Ng6 {[%emt 0:00:25]} Bf7 {[%emt 0:00:53]} 45. Nf4 {[%emt 0:00:30]} Nxf4 {[%emt 0:00:14]} 46. Bxf4 {[%emt 0:00:13]} Nd5 {[%emt 0:00:35]} 47. Bxd5 {[%emt 0:00:45]} Bxd5 {[%emt 0:00:07]} 48. Qe2 {[%emt 0:00:37]} Be6 {[%emt 0:00:14]} 49. Qg2 {[%emt 0:01:03]} Kf7 {[%emt 0:00:37]} 50. h4 {[%emt 0:00:00]} Bg4 {[%emt 0:00:45]} 51. Qd2 {[%emt 0:00:20]} Qe6 {[%emt 0:00:23]} 52. Kg1 {[%emt 0:00:37]} Qa6 {[%emt 0:00:50]} 53. Qf2 {[%emt 0:00:31]} Qa1+ {[%emt 0:00:37]} 54. Kg2 {[%emt 0:00:20]} Qa8+ {[%emt 0:00:26]} 55. Kg1 {[%emt 0:00:17]} Qd5 {[%emt 0:00:31]} 56. Bc1 {[%emt 0:00:52]} Qe6 {[%emt 0:00:39]} 57. Bd2 {[%emt 0:00:24]} Ke7 {[%emt 0:01:03]} 58. b4 {[%emt 0:01:09]} 0-1